bitfinex-derivatives/quotes_SOLF0:USTF0_20250207
["timestamp","ask_amount","ask_price","bid_price","bid_amount"]
[1738936252105,35.13679954,200.02,199.89,6.2451]
[1738936252609,4.9998,199.96,199.9,5.001]
[1738936252812,35.13679954,200.02,199.89,6.2451]
[1738936253310,0.03686973,199.97,199.94,0.03676705]
[1738936253702,0.03686973,199.97,199.95,5.0]
[1738936253908,0.03686973,199.97,199.94,0.03676705]
[1738936254109,35.13679954,200.06,199.94,0.03676705]
[1738936254512,35.13679954,200.14,199.97,35.13679954]
[1738936254813,4.996,200.11,200.04,4.9977]
[1738936255009,21.57729063,200.12,199.98,3.0837]
[1738936255406,21.57729063,200.12,200.05,0.03407967]
[1738936255813,4.9972,200.07,200.05,0.03407967]
[1738936256012,21.57729063,200.12,200.05,0.03407967]
[1738936256716,35.06926169,200.14,200.05,0.03407967]
[1738936256916,4.9957,200.12,200.06,4.9972]
[1738936257213,35.06926169,200.14,200.05,0.03407967]
[1738936257918,4.9966,200.09,200.05,0.03407967]
[1738936258216,35.06926169,200.14,200.05,0.03407967]
[1738936258410,4.9972,200.06,200.05,0.03407967]
[1738936258608,35.06926169,200.14,200.05,0.03407967]
[1738936259010,35.06926169,200.1,200.05,0.03407967]
[1738936259213,4.9972,200.06,200.05,0.03407967]
[1738936259516,35.06926169,200.1,199.94,3.2755]
[1738936259818,35.06926169,200.1,200.03,0.03379303]
[1738936260228,4.9975,200.05,200.03,0.03379303]
[1738936260423,35.06926169,200.1,200.03,0.03379303]
[1738936261215,4.9977,200.04,200.03,0.03379303]
[1738936261423,35.06926169,200.06,199.86,35.06926169]
[1738936261623,35.06926169,200.06,199.88,6.5456]
[1738936261827,1.0268,200.09,199.88,6.5456]
[1738936261828,35.06926169,200.02,199.88,6.5456]
[1738936262027,35.06926169,199.98,199.8,35.06926169]
[1738936262224,35.06926169,199.98,199.81,13.3024509]
[1738936262426,35.06926169,199.98,199.85,5.0025]
[1738936262627,35.06926169,199.98,199.81,13.3024509]
[1738936262628,0.03379304,199.91,199.88,0.03306383]
[1738936263627,5.0014,199.9,199.88,0.03306383]
[1738936263830,0.03379304,199.91,199.88,0.03306383]
[1738936264024,0.03379304,199.91,199.88,6.383e-05]
[1738936264225,5.0015,199.89,199.88,6.383e-05]
[1738936264930,0.03379304,199.91,199.88,6.383e-05]
[1738936265532,5.0012,199.9,199.88,6.383e-05]
[1738936265731,0.03379304,199.91,199.88,6.383e-05]
[1738936266427,0.03379304,199.91,199.89,5.0012]
[1738936266922,0.03379304,199.91,199.88,6.383e-05]
[1738936267126,4.9984,200.02,199.88,6.383e-05]
[1738936267322,1.0016,200.09,199.88,3.28666383]
[1738936267533,1.0016,200.09,199.88,3.2866]
[1738936267730,4.9985,200.01,199.88,3.2866]
[1738936268029,35.06926169,200.06,199.88,3.2866]
[1738936268232,4.9987,200.0,199.95,4.9999]
[1738936268421,0.033,199.96,199.95,4.9999]
[1738936268825,4.9982,200.03,199.97,4.9992]
[1738936269231,35.06926169,200.03,199.88,3.2866]
[1738936269526,35.06926169,200.03,199.89,6.2831]
[1738936270128,35.06926169,200.03,199.94,0.03715617]
[1738936270321,4.9987,200.01,199.95,4.9999]
[1738936270522,35.06926169,200.03,199.94,0.03715617]
[1738936270924,4.9993,199.98,199.94,0.03715617]
[1738936271129,35.06926169,200.07,199.94,0.03715617]
[1738936271529,4.9979,200.04,199.98,4.9992]
[1738936271736,35.06926169,200.07,199.98,0.03352281]
[1738936271933,4.9979,200.04,199.99,4.9989]
[1738936272232,35.06926169,200.07,199.98,0.03352281]
[1738936272435,35.06926169,199.99,199.89,6.2831]
[1738936272635,35.06926169,199.99,199.87,5.0017]
[1738936272839,35.06926169,199.95,199.82,5.8992]
[1738936273136,5.0013,199.9,199.82,5.8992]
[1738936273338,35.06926169,199.95,199.82,5.8992]
[1738936273539,35.06926169,199.99,199.84,35.06926169]
[1738936273732,35.06926169,200.03,199.87,0.03810298]
[1738936273933,0.03352281,199.93,199.87,0.03810298]
[1738936274134,35.06926169,200.03,199.88,35.06926169]
[1738936274437,0.03334558,199.92,199.88,35.10189589]
[1738936274642,35.06926169,200.03,199.88,35.06926169]
[1738936274832,4.9988,200.0,199.88,35.06926169]
[1738936275434,4.9983,200.02,199.96,4.9995]
[1738936275639,35.06926169,200.07,199.88,35.06926169]
[1738936275834,35.06926169,200.07,199.97,0.03690938]
[1738936276441,35.06926169,200.03,199.97,0.03690938]
[1738936276633,4.9992,199.98,199.87,4.7]
[1738936276834,35.06926169,200.03,199.87,4.7]
[1738936277035,35.06926169,199.99,199.98,4.985e-05]
[1738936277240,0.03467723,199.97,199.85,3.1129]
[1738936277637,35.06926169,199.99,199.85,3.1129]
[1738936277834,35.06926169,200.03,199.85,3.1129]
[1738936278243,0.03467723,199.96,199.92,0.03722399]
[1738936278641,35.06926169,199.99,199.85,3.1129]
[1738936278938,0.03428272,199.96,199.92,0.03554597]
[1738936280432,5.0005,199.93,199.92,0.03554597]
[1738936280637,0.03428272,199.96,199.92,0.03554597]
[1738936282641,35.06926169,200.07,199.92,35.10480766]
[1738936282940,35.14276169,200.11,199.93,6.3702]
[1738936283146,4.9972,200.07,200.01,4.9984]
[1738936283345,35.06926169,200.11,199.93,6.3702]
[1738936283346,35.06926169,200.11,199.94,3.1264]
[1738936283742,4.9972,200.06,199.94,3.1264]
[1738936283941,35.06926169,200.11,200.0,0.03599376]
[1738936285846,4.9982,200.03,200.0,0.03599376]
[1738936286043,35.06926169,200.07,200.0,0.03599376]
[1738936287037,4.9985,200.01,200.0,0.03599376]
[1738936287644,4.9984,200.02,200.0,0.03599376]
[1738936288143,4.9985,200.01,200.0,0.03599376]
[1738936288843,0.0771,200.09,199.89,3.1174]
[1738936288844,35.06926169,200.03,199.89,3.1174]
[1738936289048,35.06926169,199.99,199.85,6.1423]
[1738936289345,4.9997,199.96,199.85,6.1423]
[1738936289650,35.06926169,199.99,199.85,6.1423]
[1738936289849,5.0001,199.95,199.85,6.1423]
[1738936290148,0.03638827,199.94,199.9,0.03318931]
[1738936290441,5.001,199.91,199.9,0.03318931]
[1738936291051,5.0005,199.93,199.9,0.03318931]
[1738936291244,0.03638827,199.94,199.9,0.03318931]
[1738936291638,0.03638827,199.94,199.93,5.0005]
[1738936292442,35.06926169,200.07,199.96,4.9995]
[1738936292647,21.59724175,200.07,199.96,4.9995]
[1738936292851,4.9978,200.04,199.96,4.9995]
[1738936293047,21.59724175,200.07,199.91,6.146]
[1738936293749,21.59724175,200.15,199.97,21.63048756]
[1738936294051,4.9962,200.1,200.01,4.9983]
[1738936294252,1.9341,200.19,200.02,3.0886]
[1738936294453,1.9341,200.19,200.04,0.03697952]
[1738936294751,21.59724175,200.16,199.98,6.1317]
[1738936294952,4.996,200.11,200.09,0.03333878]
[1738936295354,21.59724175,200.12,199.99,3.0886]
[1738936296649,4.997,200.07,200.03,0.03155804]
[1738936297048,0.03333878,200.08,200.03,0.03155804]
[1738936297246,4.9976,200.05,200.03,0.03155804]
[1738936297553,4.9976,200.05,200.03,5.804e-05]
[1738936297754,4.9992,199.99,199.91,5.0009]
[1738936298457,4.9986,200.01,199.92,5.0006]
[1738936298652,21.59724175,200.04,199.87,12.623]
[1738936298958,0.03444027,199.98,199.95,0.03289777]
[1738936300658,0.03444027,199.98,199.77,11.37558999]
[1738936300860,0.03444027,199.98,199.81,12.8426]
[1738936301058,5.0007,199.92,199.84,5.0027]
[1738936301360,21.59724175,200.0,199.81,12.8426]
[1738936301859,0.03267772,199.92,199.9,5.0011]
[1738936302056,0.03267772,199.92,199.89,0.03815649]
[1738936302359,21.59724175,200.0,199.81,12.8426]
[1738936302554,21.59724175,200.0,199.89,0.03237137]
[1738936302555,0.03279547,199.92,199.89,0.03237137]
[1738936302960,21.59724175,200.0,199.89,0.03237137]
[1738936303260,0.0337932,199.92,199.89,0.03237137]
[1738936303455,21.59724175,200.0,199.89,0.03237137]
[1738936303757,0.03748149,199.96,199.89,0.03237137]
[1738936303959,0.03748149,199.96,199.94,5.0]
[1738936304456,0.03748149,199.96,199.93,0.03227909]
[1738936305554,0.5332,200.07,199.93,0.03227909]
[1738936305750,1.3193,200.08,199.97,4.9993]
[1738936305955,4.997,200.07,199.93,9.4264]
[1738936306554,21.59724175,200.1,199.93,9.4264]
[1738936306959,0.03332351,200.02,200.01,4.9985]
[1738936307363,21.59724175,200.1,199.93,9.4264]
[1738936307664,0.03835098,200.04,199.99,0.03787403]
[1738936307965,0.03835098,200.04,200.03,4.998]
[1738936309561,4.9955,200.13,200.08,4.9967]
[1738936309762,21.59724175,200.14,199.99,0.03787403]
[1738936309959,21.59724175,200.14,199.96,21.59724175]
[1738936310765,4.9959,200.12,200.01,4.9984]
[1738936310970,0.02196212,200.07,200.03,0.03585169]
[1738936311969,0.02196212,200.07,200.04,4.9977]
[1738936312369,0.02196212,200.07,200.03,0.03585169]
[1738936313471,0.02196212,200.07,200.03,5.03355169]
[1738936313870,0.02196212,200.07,200.03,0.03585169]
[1738936314173,0.02196212,200.07,200.04,4.9977]
[1738936314374,0.02196212,200.07,200.03,0.03585169]
[1738936314573,0.02196212,200.07,200.04,4.9977]
[1738936314775,0.02196212,200.07,200.03,0.03585169]
[1738936315069,0.02196212,200.07,200.04,4.9977]
[1738936315270,0.02196212,200.07,200.03,0.03585169]
[1738936315672,0.02196212,200.07,200.03,5.03375169]
[1738936316176,4.9973,200.06,200.03,0.03585169]
[1738936316383,0.02196212,200.07,200.03,0.03585169]
[1738936317488,4.9977,200.04,200.03,0.03585169]
[1738936317884,0.02196212,200.07,200.03,0.03585169]
[1738936318682,0.02196212,200.07,200.06,4.9972]
[1738936318989,47.18799685,200.21,200.03,0.03585169]
[1738936319189,47.18799685,200.21,200.06,4.9972]
[1738936319384,21.59724175,200.16,199.98,21.59724175]
[1738936319988,21.59724175,200.16,200.05,0.03243618]
[1738936320190,4.9959,200.12,200.06,4.9972]
[1738936320490,21.59724175,200.2,199.98,21.59724175]
[1738936320685,21.59724175,200.16,200.07,0.03832812]
[1738936320989,21.59724175,200.16,199.98,21.59724175]
[1738936321391,4.9962,200.1,200.09,0.03428544]
[1738936321687,4.9962,200.1,200.09,8.544e-05]
[1738936323492,4.998,200.03,199.97,3.1635]
[1738936323788,21.59724175,200.08,199.93,9.4264]
[1738936324090,4.9999,199.96,199.9,3.0817]
[1738936324490,21.59724175,200.04,199.9,3.0817]
[1738936324692,0.03428544,199.95,199.91,0.03250829]
[1738936324987,21.59724175,200.0,199.88,6.1053]
[1738936325387,0.03367098,199.95,199.91,0.03652425]
[1738936325681,21.59724175,199.96,199.85,26.78235997]
[1738936326393,26.27724175,200.0,199.85,26.78235997]
[1738936326394,21.59724175,199.92,199.85,26.78235997]
[1738936326788,5.0017,199.88,199.87,0.03402657]
[1738936327087,0.0319173,199.9,199.87,0.03402657]
[1738936327290,5.0333173,199.9,199.87,0.03402657]
[1738936327490,0.0319173,199.9,199.87,0.03402657]
[1738936327886,5.0017,199.88,199.87,0.03402657]
[1738936328089,0.0319173,199.9,199.79,9.2696]
[1738936328695,21.59724175,199.87,199.74,3.1337]
[1738936329291,21.59724175,199.83,199.71,26.8696982]
[1738936329489,0.03406573,199.82,199.79,0.03549013]
[1738936329692,0.03406573,199.82,199.71,9.0293]
[1738936329991,5.005,199.75,199.71,9.0293]
[1738936330400,5.0051,199.75,199.68,5.0066]
[1738936330887,21.59724175,199.79,199.65,9.1807]
[1738936331089,0.0374123,199.73,199.7,0.03679843]
[1738936333695,21.59724175,199.83,199.7,0.03679843]
[1738936334087,21.59724175,199.83,199.68,21.59724175]
[1738936334088,0.6311,199.86,199.68,21.59724175]
[1738936334286,5.0025,199.85,199.78,5.0042]
[1738936334485,4.68,199.9,199.65,9.1807]
[1738936334486,21.59724175,199.9,199.72,21.59724175]
[1738936334697,21.59724175,199.9,199.76,21.59724175]
[1738936334888,26.59824175,199.91,199.84,5.0027]
[1738936335088,0.03437465,199.83,199.79,0.03375578]
[1738936335689,5.0035,199.81,199.77,5.956]
[1738936335992,21.63137462,199.83,199.64,21.59724175]
[1738936336198,21.63137462,199.83,199.65,6.0028]
[1738936336400,21.59724175,199.83,199.65,6.0028]
[1738936336798,5.004,199.79,199.72,5.0056]
[1738936336993,21.59724175,199.83,199.72,5.0056]
[1738936337293,5.0036,199.81,199.74,5.0051]
[1738936337598,0.03634736,199.77,199.74,0.03690061]
[1738936337798,5.005,199.75,199.74,0.03690061]
[1738936337996,21.59724175,199.75,199.65,6.0028]
[1738936338391,21.59724175,199.75,199.58,3.0798]
[1738936338599,21.59724175,199.83,199.63,21.59724175]
[1738936339198,21.59724175,199.83,199.64,3.1118]
[1738936339397,0.03373346,199.75,199.71,0.03469454]
[1738936339598,0.03373346,199.75,199.74,5.0052]
[1738936339798,0.6719,199.86,199.68,3.1389]
[1738936340100,21.59724175,199.91,199.71,21.59724175]
[1738936340798,21.59724175,199.91,199.75,21.59724175]
[1738936340999,0.03741,199.83,199.79,0.03481771]
[1738936341199,21.59724175,199.95,199.79,0.03481771]
[1738936341494,0.6722,199.96,199.79,21.59724175]
[1738936341693,4.9991,199.99,199.83,21.59724175]
[1738936341890,21.59724175,200.0,199.83,21.59724175]
[1738936342090,21.59724175,200.0,199.77,3.1389]
[1738936342091,21.59724175,200.0,199.79,21.59724175]
[1738936342697,0.03621023,199.91,199.89,5.0013]
[1738936343204,4.998,200.03,199.94,5.0001]
[1738936343404,21.59724175,200.04,199.87,21.59724175]
[1738936343703,21.59724175,200.08,199.88,3.116]
[1738936344099,4.997,200.07,199.94,5.0002]
[1738936344300,4.997,200.07,199.91,21.59724175]
[1738936344496,9.157e-05,200.0,199.96,0.03682361]
[1738936344700,9.157e-05,200.0,199.99,4.999]
[1738936344905,4.9963,200.1,199.97,3.116]
[1738936345109,21.59724175,200.12,199.97,3.116]
[1738936345408,47.18799685,200.21,200.04,21.59724175]
[1738936345806,52.18149685,200.21,200.11,4.9957]
[1738936346109,0.03198252,200.14,200.1,0.0324749]
[1738936346499,47.18799685,200.21,200.14,4.995]
[1738936346705,47.18799685,200.21,200.1,0.0324749]
[1738936346904,47.18799685,200.21,200.09,9.1068]
[1738936347507,47.18799685,200.21,200.11,35.03390711]
[1738936348005,47.18799685,200.21,200.13,0.03611428]
[1738936348803,47.18799685,200.21,200.13,5.03151428]
[1738936349107,47.18799685,200.21,200.13,0.03611428]
[1738936349407,47.18799685,200.21,200.19,4.9939]
[1738936349799,47.18799685,200.21,200.13,0.03611428]
[1738936350005,47.18799685,200.21,200.13,4.9954]
[1738936350204,47.18799685,200.21,200.1,35.03390711]
[1738936350205,47.18799685,200.21,200.15,0.03764539]
[1738936350605,4.9946,200.17,200.15,0.03764539]
[1738936351008,4.9958,200.12,200.05,4.9974]
[1738936351201,35.03390711,200.18,200.01,9.5763]
[1738936352100,4.9961,200.11,200.03,4.9977]
[1738936352310,0.03279374,200.12,200.07,0.0374564]
[1738936352809,5.02869374,200.12,200.04,4.9977]
[1738936353010,0.03279374,200.12,200.07,0.03436106]
[1738936355810,0.03279374,200.12,200.11,4.996]
[1738936356014,4.9941,200.19,200.07,0.03436106]
[1738936356202,47.18799685,200.21,200.08,35.03390711]
[1738936356403,47.18799685,200.21,200.12,35.03390711]
[1738936356610,47.18799685,200.21,200.13,9.274]
[1738936356915,47.18799685,200.21,200.2,4.9937]
[1738936357211,47.18799685,200.21,200.15,0.0321931]
[1738936357512,47.18799685,200.21,200.19,4.9937]
[1738936358007,38.52819685,200.21,200.15,0.0321931]
[1738936358209,38.52819685,200.21,200.2,4.9937]
[1738936358406,35.03390711,200.34,200.16,35.03390711]
[1738936358606,4.9916,200.29,200.24,4.9927]
[1738936358806,4.9916,200.29,200.16,35.03390711]
[1738936359005,35.03390711,200.34,200.24,0.03375754]
[1738936359209,0.7268,200.38,200.24,0.03375754]
[1738936359619,0.7268,200.38,200.2,35.03390711]
[1738936360007,0.7268,200.38,200.29,0.03823427]
[1738936360205,4.9912,200.3,200.29,0.03823427]
[1738936360414,35.03390711,200.36,200.29,0.03823427]
[1738936361717,3.0393,200.37,200.29,0.03823427]
[1738936362416,35.03390711,200.36,200.29,0.03823427]
[1738936363416,4.99,200.35,200.29,0.03823427]
[1738936363917,3.0393,200.37,200.29,0.03823427]
[1738936364620,35.03390711,200.36,200.29,0.03823427]
[1738936364820,4.9912,200.3,200.29,0.03823427]
[1738936365723,35.03390711,200.32,200.16,35.03390711]
[1738936366116,35.03390711,200.32,200.2,4.9935]
[1738936366316,35.03390711,200.32,200.16,35.03390711]
[1738936366517,35.03390711,200.36,200.27,4.9918]
[1738936366914,0.03513936,200.26,200.22,0.03267115]
[1738936367224,3.0393,200.37,200.2,35.03390711]
[1738936367918,4.9917,200.29,200.2,35.03390711]
[1738936368214,35.03390711,200.36,200.24,4.9927]
[1738936368418,4.9906,200.33,200.24,4.9927]
[1738936368618,35.03390711,200.36,200.24,4.9927]
[1738936368821,35.03390711,200.36,200.26,0.03396913]
[1738936369615,4.992,200.27,200.26,0.03396913]
[1738936370517,3.0393,200.37,200.26,0.03396913]
[1738936370518,35.03390711,200.36,200.26,0.03396913]
[1738936371220,4.991,200.31,200.26,0.03396913]
[1738936371422,35.03390711,200.36,200.26,0.03396913]
[1738936371729,4.992,200.27,200.26,0.03396913]
[1738936372325,4.9927,200.25,200.15,35.03390711]
[1738936372523,35.03390711,200.32,200.22,4.9932]
[1738936373025,35.03390711,200.32,200.14,3.1848]
[1738936373226,35.03390711,200.32,200.19,4.9939]
[1738936373421,4.9921,200.27,200.14,3.1848]
[1738936373725,0.03619277,200.28,200.23,0.03644617]
[1738936374028,35.03390711,200.32,200.23,0.03321727]
[1738936374029,4.993,200.24,200.23,0.03321727]
[1738936374624,4.9932,200.23,200.17,4.9942]
[1738936374824,0.03658287,200.28,200.19,4.9939]
[1738936375027,4.9925,200.26,200.15,21.5509526]
[1738936375224,21.5509526,200.33,200.15,21.5509526]
[1738936375424,21.5509526,200.33,200.22,4.993]
[1738936375816,0.0347222,200.26,200.22,0.03776467]
[1738936376223,4.9902,200.34,200.23,21.5509526]
[1738936376425,22.8166526,200.41,200.23,24.5079526]
[1738936376627,4.9896,200.37,200.31,4.9908]
[1738936376825,4.9896,200.37,200.24,3.1691]
[1738936377017,22.8166526,200.41,200.24,3.1691]
[1738936377224,4.9896,200.37,200.24,3.1691]
[1738936377426,0.03699458,200.35,200.3,0.03276597]
[1738936378718,0.03699458,200.35,200.32,4.9905]
[1738936379125,0.03699458,200.35,200.31,4.9909]
[1738936380122,0.03699458,200.35,200.3,0.03276597]
[1738936381223,4.9906,200.33,200.3,0.03276597]
[1738936381424,0.03699458,200.35,200.3,0.03276597]
[1738936381824,0.03699458,200.35,200.3,5.02396597]
[1738936382126,0.03699458,200.35,200.3,0.03276597]
[1738936383227,0.03699458,200.35,200.32,4.9906]
[1738936383429,0.03699458,200.35,200.3,0.03276597]
[1738936383727,0.03699458,200.35,200.34,4.9902]
[1738936384427,0.03699458,200.35,200.3,0.03276597]
[1738936384827,0.03699458,200.35,200.31,4.9908]
[1738936385031,0.03699458,200.35,200.3,0.03276597]
[1738936385631,0.03699458,200.35,200.31,4.9909]
[1738936385831,0.03699458,200.35,200.3,0.03276597]
[1738936386127,5.02699458,200.35,200.3,5.02376597]
[1738936386331,0.03699458,200.35,200.3,0.03276597]
[1738936387330,4.9907,200.33,200.3,0.03276597]
[1738936387542,0.03699458,200.35,200.3,0.03276597]
[1738936388641,4.991,200.31,200.3,0.03276597]
[1738936389036,9.06589458,200.35,200.21,5.978]
[1738936389232,21.5509526,200.33,200.16,26.78235997]
[1738936389637,4.9922,200.27,200.16,26.78235997]
[1738936389837,21.5509526,200.33,200.16,26.78235997]
[1738936390234,4.9932,200.23,200.22,0.03691653]
[1738936390438,0.03751819,200.27,200.16,26.78235997]
[1738936390945,21.5509526,200.29,200.16,26.78235997]
[1738936391245,511.25670527,202.1,200.16,26.78235997]
[1738936391246,4.9881,200.43,200.33,4.9904]
[1738936391543,21.5509526,200.46,200.27,12.2082]
[1738936391743,0.03405037,200.4,200.36,0.03484185]
[1738936393041,4.9893,200.38,200.36,0.03484185]
[1738936393643,4.989,200.39,200.36,0.03484185]
[1738936394041,0.03405037,200.4,200.36,0.03484185]
[1738936394234,4.9893,200.38,200.36,0.03484185]
[1738936394439,4.9893,200.38,200.26,21.5509526]
[1738936394440,21.5509526,200.38,200.2,21.5509526]
[1738936394639,21.5509526,200.34,200.2,6.3804]
[1738936394839,4.9916,200.29,200.2,6.3804]
[1738936395540,0.03840045,200.27,200.2,11.374]
[1738936395748,0.03840045,200.27,200.22,0.03297789]
[1738936396745,0.03840045,200.27,200.25,4.9924]
[1738936397138,0.03840045,200.27,200.23,4.9928]
[1738936397341,0.03840045,200.27,200.22,0.03297789]
[1738936399548,4.9923,200.26,200.22,0.03297789]
[1738936399846,0.03840045,200.27,200.22,0.03297789]
[1738936400247,4.9926,200.25,200.22,0.03297789]
[1738936400442,0.03840045,200.27,200.22,0.03297789]
[1738936400637,4.9925,200.25,200.22,0.03297789]
[1738936400844,0.03840045,200.27,200.22,0.03297789]
[1738936401341,4.993,200.23,200.22,0.03297789]
[1738936401737,0.03840045,200.27,200.13,6.3804]
[1738936401943,21.5509526,200.24,200.07,27.8331526]
[1738936402137,21.5509526,200.24,200.07,33.8595526]
[1738936402344,4.9947,200.16,200.11,4.9959]
[1738936402541,4.9947,200.16,200.07,33.8595526]
[1738936402846,21.5509526,200.24,200.07,33.8595526]
[1738936403050,0.03665605,200.14,200.09,0.03209568]
[1738936403342,0.03665605,200.14,200.02,3.189]
[1738936403546,3.1386,200.19,200.09,0.03598417]
[1738936403845,0.03284978,200.14,200.09,0.03598417]
[1738936404043,5.02824978,200.14,200.09,0.03598417]
[1738936404242,0.03284978,200.14,200.09,0.03598417]
[1738936405245,0.03284978,200.14,200.09,8.417e-05]
[1738936405447,4.9962,200.1,200.09,8.417e-05]
[1738936406150,4.9959,200.12,200.09,8.417e-05]
[1738936406348,0.03284978,200.14,200.09,8.417e-05]
[1738936407348,3.08484978,200.14,200.09,8.417e-05]
[1738936407841,0.03284978,200.14,200.09,8.417e-05]
[1738936408153,0.03284978,200.14,200.13,4.9955]
[1738936408649,9.2569,200.29,200.1,6.0174]
[1738936408845,3.2752,200.28,200.12,21.5509526]
[1738936409450,159.33352287,200.34,200.16,21.5509526]
[1738936409844,0.03366069,200.22,200.18,0.0340386]
[1738936410151,21.5509526,200.34,200.16,21.5509526]
[1738936410649,0.03644567,200.22,200.18,0.03828941]
[1738936410850,21.5509526,200.3,200.13,6.3827]
[1738936411046,4.9925,200.25,200.17,4.9944]
[1738936411250,0.0362446,200.22,200.18,0.03302185]
[1738936411847,4.46e-05,200.22,200.21,4.9935]
[1738936412353,4.46e-05,200.22,200.18,0.03302185]
[1738936413158,21.5509972,200.22,200.18,0.03302185]
[1738936413351,4.9938,200.2,200.18,0.03302185]
[1738936413952,21.5509972,200.22,200.18,0.03302185]
[1738936414151,4.46e-05,200.22,200.18,0.03302185]
[1738936414951,4.9935,200.21,200.18,0.03302185]
[1738936415243,4.46e-05,200.22,200.18,0.03302185]
[1738936416052,4.994,200.19,200.18,0.03302185]
[1738936416447,4.9937,200.21,200.18,0.03302185]
[1738936416844,21.5509972,200.22,200.18,0.03302185]
[1738936417349,4.46e-05,200.22,200.18,0.03302185]
[1738936417748,4.46e-05,200.22,200.18,5.02722185]
[1738936417949,4.46e-05,200.22,200.18,0.03302185]
[1738936418248,4.46e-05,200.22,200.21,4.9935]
[1738936419651,4.46e-05,200.22,200.2,4.9937]
[1738936419853,4.46e-05,200.22,200.18,0.03302185]
[1738936420153,4.46e-05,200.22,200.21,4.9935]
[1738936420750,4.46e-05,200.22,200.2,6.2421]
[1738936421053,4.46e-05,200.22,200.18,0.03302185]
[1738936421355,4.46e-05,200.22,200.19,4.9939]
[1738936422649,4.46e-05,200.22,200.18,0.03302185]
[1738936422858,4.46e-05,200.22,200.19,4.9939]
[1738936424256,4.46e-05,200.22,200.2,4.9937]
[1738936424553,4.46e-05,200.22,200.18,0.03302185]
[1738936424855,4.46e-05,200.22,200.21,4.9935]
[1738936427358,21.5509526,200.42,200.2,24.7816526]
[1738936427561,21.5509526,200.42,200.25,21.5509526]
[1738936427756,21.5509526,200.42,200.26,6.0972]
[1738936428057,4.9888,200.4,200.3,4.991]
[1738936428258,21.5509526,200.42,200.26,6.0972]
[1738936428561,4.9899,200.36,200.33,0.03601075]
[1738936428760,0.03721957,200.37,200.33,0.03601075]
[1738936430654,21.5509526,200.34,200.33,0.03601075]
[1738936431559,21.5509526,200.34,200.21,3.154]
[1738936432759,4.9915,200.29,200.25,0.03514756]
[1738936432966,0.03722453,200.3,200.25,0.03514756]
[1738936433760,0.03722453,200.3,200.29,4.9915]
[1738936435456,0.03722453,200.3,200.27,4.9917]
[1738936435656,0.03722453,200.3,200.25,0.03514756]
[1738936436164,0.03722453,200.3,200.26,4.9922]
[1738936436363,0.03722453,200.3,200.25,0.03514756]
[1738936436767,4.992,200.27,200.25,0.03514756]
[1738936437067,0.03722453,200.3,200.25,0.03514756]
[1738936438167,5.02862453,200.3,200.25,5.02754756]
[1738936438369,0.03722453,200.3,200.25,0.03514756]
[1738936438765,4.9915,200.29,200.26,4.9921]
[1738936438967,0.03722453,200.3,200.26,4.9921]
[1738936439168,0.03722453,200.3,200.25,0.03514756]
[1738936439368,0.03722453,200.3,200.27,4.9918]
[1738936439770,0.03722453,200.3,200.25,0.03514756]
[1738936439970,4.9917,200.29,200.25,5.02754756]
[1738936440168,0.03722453,200.3,200.25,0.03514756]
[1738936440568,0.03722453,200.3,200.27,4.9919]
[1738936440971,115.48037181,200.57,200.3,15.01]
[1738936441270,182.70098114,200.65,200.56,21.5509526]
[1738936441467,182.70098114,200.65,200.64,26.5337526]
[1738936441674,182.70098114,200.65,200.64,21.5509526]
[1738936441864,182.70098114,200.65,200.6,21.5509526]
[1738936442069,182.70098114,200.65,200.62,0.03374891]
[1738936442364,171.19558114,200.65,200.62,0.03374891]
[1738936442567,97.87287687,200.65,200.64,34.814768]
[1738936443073,86.73017687,200.65,200.64,34.814768]
[1738936443269,79.16267687,200.65,200.64,34.814768]
[1738936443473,79.16267687,200.65,200.62,0.03374891]
[1738936443668,79.16267687,200.65,200.64,34.814768]
[1738936443871,2.45e-06,200.67,200.65,4.9825]
[1738936444274,15.01,200.98,200.64,34.814768]
[1738936444275,5.015,200.99,200.64,34.814768]
[1738936444572,34.814768,200.93,200.71,34.814768]
[1738936444771,34.814768,200.93,200.75,34.814768]
[1738936444974,4.9769,200.88,200.72,9.6206]
[1738936445175,34.814768,200.89,200.71,34.814768]
[1738936445370,34.814768,200.89,200.67,34.814768]
[1738936445569,4.9789,200.8,200.78,0.03386297]
[1738936445772,0.03438034,200.82,200.78,0.03386297]
[1738936446969,34.814768,200.89,200.79,48.55840835]
[1738936447174,4.9776,200.85,200.79,48.55840835]
[1738936447374,34.814768,200.89,200.79,48.55840835]
[1738936447876,4.9769,200.88,200.79,48.55840835]
[1738936448272,0.03469407,200.86,200.79,48.55840835]